bitfinex/quotes_BTCUSD_20240728
["timestamp","ask_amount","ask_price","bid_price","bid_amount"]
[1722152833740,0.14444,67604.0,67603.0,0.794287]
[1722152834186,0.14444,67604.0,67603.0,0.480012]
[1722152834412,0.15883194,67604.0,67603.0,0.794287]
[1722152834648,0.02273194,67604.0,67603.0,1.19015959]
[1722152834858,0.00834,67604.0,67603.0,1.19015959]
[1722152835485,0.00834,67604.0,67603.0,1.11255959]
[1722152835687,0.00834,67604.0,67603.0,1.19015959]
[1722152838326,0.00834,67604.0,67603.0,1.33235959]
[1722152838734,0.00834,67604.0,67603.0,1.45526421]
[1722152838957,0.00834,67604.0,67603.0,1.45526219]
[1722152839175,0.00834,67604.0,67603.0,1.19015959]
[1722152840120,0.00834,67604.0,67603.0,1.17715959]
[1722152840524,0.07094,67604.0,67603.0,1.31406403]
[1722152840660,0.07094,67604.0,67603.0,1.16515959]
[1722152841113,0.00834,67604.0,67603.0,1.19315959]
[1722152841724,0.00834,67604.0,67603.0,1.17915959]
[1722152841941,0.00834,67604.0,67603.0,1.19315959]
[1722152849320,0.00834,67604.0,67603.0,1.31607005]
[1722152849733,0.00834,67604.0,67603.0,1.61247005]
[1722152849946,0.00834,67604.0,67603.0,1.48955959]
[1722152850148,0.00834,67604.0,67603.0,1.55226259]
[1722152851917,0.00834,67604.0,67603.0,1.84913759]
[1722152853612,0.00834,67604.0,67603.0,1.72623459]
[1722152853904,0.00834,67604.0,67603.0,1.84913491]
[1722152854654,0.00834,67604.0,67603.0,1.85113491]
[1722152855136,0.00834,67604.0,67603.0,1.89530542]
[1722152855492,0.00834,67604.0,67603.0,1.89529805]
[1722152856438,0.00834,67604.0,67603.0,1.89528889]
[1722152857303,0.00834,67604.0,67603.0,2.13196389]
[1722152857433,0.00834,67604.0,67603.0,1.89528889]
[1722152857636,0.00834,67604.0,67603.0,1.91736954]
[1722152858043,0.00834,67604.0,67603.0,1.90283813]
[1722152858611,0.00834,67610.0,67609.0,0.002]
[1722152858844,0.00834,67610.0,67609.0,1.10058757]
[1722152859061,0.00834,67610.0,67609.0,1.67389557]
[1722152859667,0.00834,67610.0,67609.0,1.67389079]
[1722152859997,0.00834,67610.0,67609.0,1.68789079]
[1722152861039,0.00834,67610.0,67609.0,1.70189079]
[1722152863127,0.00834,67610.0,67609.0,1.84189063]
[1722152865140,0.00834,67610.0,67609.0,1.71900257]
[1722152865269,0.00834,67610.0,67609.0,1.84189085]
[1722152868336,0.00834,67610.0,67609.0,2.07854485]
[1722152868683,0.00834,67610.0,67609.0,2.19059485]
[1722152869370,0.00834,67610.0,67609.0,2.25685763]
[1722152869546,0.00834,67610.0,67609.0,2.19058881]
[1722152869751,0.00834,67610.0,67609.0,2.25686253]
[1722152870137,0.00834,67610.0,67609.0,2.24286253]
[1722152871292,0.00834,67610.0,67609.0,2.02020853]
[1722152871473,0.00834,67610.0,67609.0,1.95193481]
[1722152872828,0.00834,67610.0,67609.0,1.95393481]
[1722152873103,0.00834,67610.0,67609.0,2.01822831]
[1722152873474,0.00834,67610.0,67609.0,2.02023404]
[1722152874476,0.00834,67610.0,67609.0,1.95393739]
[1722152874907,0.00834,67610.0,67609.0,1.87633739]
[1722152875230,0.00834,67610.0,67609.0,2.04233989]
[1722152875359,0.00834,67610.0,67609.0,1.95393583]
[1722152875559,0.00834,67610.0,67609.0,2.02023938]
[1722152875979,0.00834,67610.0,67609.0,1.95393583]
[1722152876179,0.00834,67610.0,67609.0,2.2568948]
[1722152876382,0.0609,67618.0,67617.0,1.064817]
[1722152876584,0.0609,67618.0,67617.0,1.51555983]
[1722152877747,0.0609,67618.0,67617.0,1.52655983]
[1722152878810,0.0609,67618.0,67617.0,1.53655983]
[1722152879639,0.0609,67618.0,67617.0,1.53655742]
[1722152881260,0.0609,67618.0,67617.0,1.22233142]
[1722152881458,0.0609,67618.0,67617.0,1.29993142]
[1722152882071,0.0609,67618.0,67617.0,1.29993349]
[1722152882495,0.0609,67618.0,67617.0,1.17705057]
[1722152882701,0.0609,67618.0,67617.0,1.2999336]
[1722152883104,0.0609,67618.0,67617.0,1.30874644]
[1722152883325,0.06082,67618.0,67617.0,1.30874644]
[1722152884486,0.06082,67618.0,67617.0,1.30874697]
[1722152885272,0.06082,67618.0,67617.0,1.18586341]
[1722152885485,0.06082,67618.0,67617.0,1.30874645]
[1722152888569,0.06082,67618.0,67617.0,1.30874696]
[1722152890381,0.01184,67619.0,67618.0,0.82818]
[1722152890576,0.01184,67619.0,67618.0,1.20132312]
[1722152891541,0.01184,67619.0,67618.0,1.21032312]
[1722152891988,0.01184,67619.0,67618.0,1.22032312]
[1722152892339,0.01184,67619.0,67618.0,1.09743957]
[1722152892541,0.01184,67619.0,67618.0,1.22032218]
[1722152894109,0.01184,67619.0,67618.0,1.65734078]
[1722152894533,0.01184,67619.0,67618.0,2.08421476]
[1722152894719,0.01184,67619.0,67618.0,2.10721476]
[1722152894913,0.01184,67619.0,67618.0,2.04091138]
[1722152895115,0.01184,67619.0,67618.0,2.12031589]
[1722152895319,0.01184,67619.0,67618.0,2.03591138]
[1722152895523,0.01184,67619.0,67618.0,2.05191138]
[1722152895749,0.01184,67619.0,67618.0,2.14030024]
[1722152895931,0.01184,67619.0,67618.0,2.05191138]
[1722152896151,0.01184,67619.0,67618.0,2.13831337]
[1722152896735,0.01184,67619.0,67618.0,2.04991138]
[1722152896969,0.01184,67619.0,67618.0,1.81328838]
[1722152897124,0.01184,67619.0,67618.0,1.80048479]
[1722152897280,0.01184,67619.0,67618.0,1.73418838]
[1722152897926,0.01184,67619.0,67618.0,1.82259037]
[1722152898336,0.01184,67619.0,67618.0,1.61131257]
[1722152898689,0.01184,67619.0,67618.0,1.82259268]
[1722152898905,0.01184,67619.0,67618.0,1.73418436]
[1722152899311,0.01184,67619.0,67618.0,1.82259268]
[1722152900307,0.01184,67619.0,67618.0,1.73418436]
[1722152900513,0.01184,67619.0,67618.0,1.82261995]
[1722152900921,0.01184,67619.0,67618.0,1.73418436]
[1722152901125,0.01184,67619.0,67618.0,1.82262006]
[1722152901747,0.01184,67619.0,67618.0,1.61131257]
[1722152901954,0.01184,67619.0,67618.0,1.71118608]
[1722152902389,0.01184,67619.0,67618.0,1.71118645]
[1722152904301,0.16084,67619.0,67618.0,1.22931345]
[1722152904496,0.16084,67619.0,67618.0,1.30691345]
[1722152905137,0.16084,67619.0,67618.0,1.18403957]
[1722152905332,0.16084,67619.0,67618.0,1.30692364]
[1722152907265,0.16084,67619.0,67618.0,1.35115771]
[1722152907885,0.16084,67619.0,67618.0,1.27355771]
[1722152908086,0.16084,67619.0,67618.0,1.30692364]
[1722152908448,0.16084,67619.0,67618.0,1.30692204]
[1722152908650,0.16084,67619.0,67618.0,0.99269904]
[1722152908856,0.16084,67619.0,67618.0,1.07029904]
[1722152909055,0.16084,67619.0,67618.0,0.94741657]
[1722152909479,0.16084,67619.0,67618.0,1.30692729]
[1722152911341,0.16084,67619.0,67618.0,1.18403957]
[1722152911678,0.16084,67619.0,67618.0,1.30692694]
[1722152912012,0.16084,67619.0,67618.0,1.18403957]
[1722152912415,0.16084,67619.0,67618.0,1.30692756]
[1722152912581,0.16084,67619.0,67618.0,1.18403957]
[1722152912778,0.16084,67619.0,67618.0,1.30692764]
[1722152914021,0.16084,67619.0,67618.0,1.18403957]
[1722152914022,0.15934,67619.0,67618.0,1.18403957]
[1722152914176,0.15934,67619.0,67618.0,1.30692867]
[1722152914618,0.15934,67619.0,67618.0,1.18403957]
[1722152915018,0.15934,67619.0,67618.0,1.30692412]
[1722152915429,0.15934,67619.0,67618.0,1.18403957]
[1722152917022,0.15934,67619.0,67618.0,1.30692409]
[1722152918046,0.15934,67619.0,67618.0,1.30692304]
[1722152918842,0.15934,67619.0,67618.0,1.18403957]
[1722152919044,0.15934,67619.0,67618.0,1.30692343]
[1722152920461,0.15934,67619.0,67618.0,1.18403957]
[1722152923651,0.15934,67619.0,67618.0,1.30692318]
[1722152923858,0.15934,67619.0,67618.0,1.18403957]
[1722152924169,0.01034,67619.0,67618.0,1.35208663]
[1722152924311,0.01034,67619.0,67618.0,1.30784653]
[1722152924749,0.01034,67619.0,67618.0,1.30784373]
[1722152925804,0.15324,67619.0,67618.0,1.30784373]
[1722152928019,0.15324,67619.0,67618.0,1.30784662]
[1722152931346,0.15324,67619.0,67618.0,1.3078465]
[1722152932018,0.15324,67619.0,67618.0,1.30784653]
[1722152933714,0.15324,67619.0,67618.0,1.3078462]
[1722152935402,0.15324,67619.0,67618.0,1.18496357]
[1722152935615,0.15324,67619.0,67618.0,1.3078462]
[1722152938140,0.15324,67619.0,67618.0,1.30784631]
[1722152940962,0.01034,67619.0,67618.0,1.49658657]
[1722152941162,0.01034,67619.0,67618.0,1.68582821]
[1722152941392,0.01034,67619.0,67618.0,1.61946906]
[1722152941596,0.01034,67619.0,67618.0,1.70794793]
[1722152943690,0.01034,67619.0,67618.0,1.61945952]
[1722152943896,0.01034,67619.0,67618.0,1.86411868]
[1722152944504,0.01034,67619.0,67618.0,1.95316868]
[1722152946009,0.01034,67619.0,67618.0,1.95314144]
[1722152946213,0.01034,67619.0,67618.0,1.95314194]
[1722152946407,0.01034,67619.0,67618.0,1.86470952]
[1722152947051,0.01034,67619.0,67618.0,1.86470856]
[1722152948056,0.01034,67619.0,67618.0,1.95314058]
[1722152949882,0.01034,67619.0,67618.0,1.95314781]
[1722152950796,0.01034,67619.0,67618.0,1.78710856]
[1722152950972,0.01034,67619.0,67618.0,1.95314256]
[1722152953629,0.01034,67619.0,67618.0,1.83026161]
[1722152953866,0.01034,67619.0,67618.0,1.95313532]
[1722152954268,0.01034,67619.0,67618.0,1.95313544]
[1722152955987,0.01034,67619.0,67618.0,1.95303998]
[1722152956135,0.01034,67619.0,67618.0,1.95303882]
[1722152956534,0.01034,67619.0,67618.0,1.86460912]
[1722152956763,0.01034,67619.0,67618.0,1.95303576]
[1722152956967,0.01034,67619.0,67618.0,1.95303659]
[1722152957948,0.08764,67619.0,67618.0,1.31856359]
[1722152958148,0.08764,67619.0,67618.0,1.30773611]
[1722152958149,0.14834,67619.0,67618.0,1.30773611]
[1722152958749,0.14834,67619.0,67618.0,1.61935911]
[1722152958750,0.01034,67619.0,67618.0,1.61935911]
[1722152959323,0.01034,67619.0,67618.0,1.70777969]
[1722152959556,0.01034,67619.0,67618.0,1.61935911]
[1722152959854,0.01034,67619.0,67618.0,1.54435911]
[1722152960190,0.01034,67619.0,67618.0,1.54436167]
[1722152960407,0.01034,67619.0,67618.0,1.61068427]
[1722152960589,0.01034,67619.0,67618.0,1.54436167]
[1722152960788,0.01034,67619.0,67618.0,1.63278987]
[1722152961334,0.01034,67619.0,67618.0,1.54436167]
[1722152962336,0.01034,67619.0,67618.0,1.6106897]
[1722152962723,0.01034,67619.0,67618.0,1.54436167]
[1722152963150,0.01034,67619.0,67618.0,1.6106897]
[1722152963351,0.01034,67619.0,67618.0,1.4878146]
[1722152963553,0.01034,67619.0,67618.0,1.61069253]
[1722152963911,0.01034,67619.0,67618.0,1.4102146]
[1722152964082,0.01034,67619.0,67618.0,1.61069289]
[1722152965856,0.01034,67619.0,67618.0,1.42148657]
[1722152966084,0.01034,67619.0,67618.0,1.61070014]
[1722152966816,0.01034,67619.0,67618.0,1.61070262]
[1722152969090,0.01034,67619.0,67618.0,1.37407962]
[1722152969296,0.09124,67619.0,67618.0,1.35198174]
[1722152969657,0.09124,67619.0,67618.0,1.30774185]
[1722152970147,0.09124,67619.0,67618.0,1.30774681]
[1722152972073,0.15184,67619.0,67618.0,0.60664124]
[1722152972360,0.15184,67619.0,67618.0,0.620381]
[1722152972511,0.15184,67619.0,67618.0,0.383758]
[1722152973136,0.15184,67619.0,67618.0,0.447358]
[1722152973369,0.15184,67619.0,67618.0,0.683981]
[1722152973983,0.15184,67619.0,67618.0,0.447358]
[1722152974201,0.15184,67619.0,67618.0,0.782981]
[1722152974554,0.15184,67619.0,67618.0,0.794981]
[1722152976457,0.15184,67619.0,67618.0,1.031604]
[1722152979159,0.15184,67619.0,67618.0,1.18186357]
[1722152980221,0.07094,67619.0,67618.0,1.18186357]
[1722152980818,0.07094,67619.0,67618.0,1.30474702]
[1722152981321,0.07094,67619.0,67618.0,1.18186357]
[1722152982070,0.07094,67619.0,67618.0,1.30474754]
[1722152983142,0.14724,67619.0,67618.0,1.18186357]
[1722152985315,0.01034,67619.0,67618.0,1.26446357]
[1722152985522,0.01034,67619.0,67618.0,1.30474688]
[1722152986245,0.01034,67619.0,67618.0,1.18186357]
[1722152986521,0.01034,67619.0,67618.0,1.30474735]
[1722152989788,0.01034,67619.0,67618.0,1.30474701]
[1722152992325,0.15164,67619.0,67618.0,1.22714701]
[1722152992567,0.15164,67619.0,67618.0,1.30474701]
[1722152993065,0.15164,67619.0,67618.0,1.30474746]
[1722152993298,0.15164,67619.0,67618.0,1.18186357]
[1722152993760,0.15164,67619.0,67618.0,1.30474746]
[1722152995394,0.15164,67619.0,67618.0,1.30474735]
[1722153004725,0.15164,67619.0,67618.0,1.3047469]
[1722153005307,0.15164,67619.0,67618.0,1.18186357]
[1722153005518,0.15164,67619.0,67618.0,1.30474712]
[1722153008812,0.15164,67619.0,67618.0,1.30474702]
[1722153012520,0.15164,67619.0,67618.0,1.18186357]
[1722153012732,0.15164,67619.0,67618.0,1.30474669]
[1722153013999,0.15164,67619.0,67618.0,1.22714669]
[1722153014201,0.15164,67619.0,67618.0,1.30474669]
[1722153014609,0.15164,67619.0,67618.0,1.30474739]
[1722153015340,0.15164,67619.0,67618.0,1.18186357]
[1722153015543,0.15164,67619.0,67618.0,1.30474739]
[1722153016624,0.15164,67619.0,67618.0,1.15448782]
[1722153017021,0.15164,67619.0,67618.0,1.031604]
[1722153019716,0.521732,67619.0,67618.0,0.025924]
[1722153019920,0.64898806,67619.0,67618.0,0.025924]
[1722153020154,0.59543139,67619.0,67618.0,0.025924]
[1722153020402,0.34364839,67619.0,67618.0,0.025924]
[1722153020609,0.58182159,67619.0,67618.0,0.012924]
[1722153020836,0.66378915,67619.0,67618.0,0.016924]
[1722153021021,0.6484248,67619.0,67618.0,0.016924]
[1722153021224,0.6468706,67619.0,67618.0,0.000924]
[1722153021424,0.58026739,67619.0,67618.0,0.000924]
[1722153021570,0.58282159,67619.0,67618.0,0.004924]
[1722153021944,0.58304296,67619.0,67618.0,0.004924]
[1722153022093,0.58304296,67619.0,67618.0,0.001924]
[1722153022302,0.58304293,67619.0,67618.0,0.001924]
[1722153022466,0.58304293,67619.0,67618.0,0.002924]
[1722153022467,0.55988835,67619.0,67618.0,0.002924]
[1722153022661,0.55833415,67619.0,67618.0,0.002924]
[1722153023160,0.32171515,67619.0,67618.0,0.002924]
[1722153023582,0.55833415,67619.0,67618.0,0.002924]
[1722153025141,0.55739225,67619.0,67618.0,0.002924]
[1722153025405,0.52064511,67619.0,67618.0,0.002924]
[1722153025707,0.81707274,67619.0,67618.0,0.002924]
[1722153027282,0.7939169,67619.0,67618.0,0.002924]
[1722153028314,0.75726411,67619.0,67618.0,0.002924]
[1722153028537,0.79404112,67619.0,67618.0,0.002924]
[1722153029052,0.75726411,67619.0,67618.0,0.002924]
[1722153029252,0.88430368,67619.0,67618.0,0.002924]
[1722153030095,0.79401358,67619.0,67618.0,0.002924]
[1722153031416,0.79843644,67619.0,67618.0,0.002924]
[1722153031618,0.79842942,67619.0,67618.0,0.002924]
[1722153032212,0.76168697,67619.0,67618.0,0.002924]
[1722153032388,0.79840558,67619.0,67618.0,0.002924]
[1722153034726,1.03502458,67619.0,67618.0,0.002924]
[1722153035131,0.79841374,67619.0,67618.0,0.002924]
[1722153035255,0.79841348,67619.0,67618.0,0.002924]
[1722153036909,0.79996768,67619.0,67618.0,0.002924]
[1722153038556,0.79843697,67619.0,67618.0,0.002924]
[1722153039225,0.79999117,67619.0,67618.0,0.002924]
[1722153040208,0.76324117,67619.0,67618.0,0.002924]
[1722153040417,0.17013997,67619.0,67618.0,0.002924]
[1722153040651,0.28844897,67619.0,67618.0,0.002924]
[1722153040854,0.52506797,67619.0,67618.0,0.002924]
[1722153042777,0.28844897,67619.0,67618.0,0.002924]
[1722153044338,0.52506797,67619.0,67618.0,0.002924]
[1722153045591,0.56173412,67619.0,67618.0,0.002924]
[1722153047125,0.32511512,67619.0,67618.0,0.002924]
[1722153047335,0.20680612,67619.0,67618.0,0.002924]
[1722153047540,0.12570612,67619.0,67618.0,0.002924]
[1722153047986,0.24556932,67619.0,67618.0,0.002924]
[1722153048501,0.2455899,67619.0,67618.0,0.002924]
[1722153049147,0.5628089,67619.0,67618.0,0.002924]
[1722153049324,0.5612547,67619.0,67618.0,0.002924]
[1722153049726,0.3246357,67619.0,67618.0,0.002924]
[1722153051831,0.2063267,67619.0,67618.0,0.002924]
[1722153052038,0.3246357,67619.0,67618.0,0.002924]
[1722153052450,0.32440106,67619.0,67618.0,0.002924]
[1722153054385,0.34755503,67619.0,67618.0,0.002924]
[1722153055215,0.31110294,67619.0,67618.0,0.002924]
[1722153055435,0.34747557,67619.0,67618.0,0.002924]
[1722153056186,0.34749986,67619.0,67618.0,0.002924]
[1722153056683,0.22919086,67619.0,67618.0,0.002924]
[1722153056902,0.12543689,67619.0,67618.0,0.002924]
[1722153057143,0.12699109,67619.0,67618.0,0.002924]
[1722153057858,0.18510009,67619.0,67618.0,0.002924]
[1722153058092,0.18354589,67619.0,67618.0,0.002924]
[1722153058333,0.06523689,67619.0,67618.0,0.002924]
[1722153058575,0.0668229,67619.0,67618.0,0.002924]
[1722153059277,0.0652687,67619.0,67618.0,0.002924]
[1722153060521,0.0652687,67619.0,67618.0,0.121235]
[1722153060726,0.0652687,67619.0,67618.0,0.002924]
[1722153060933,0.0668229,67619.0,67618.0,0.002924]
[1722153061316,0.08996292,67619.0,67618.0,0.002924]
[1722153061937,0.089963,67619.0,67618.0,0.002924]
[1722153062132,0.0884088,67619.0,67618.0,0.002924]
[1722153062309,0.08955377,67619.0,67618.0,0.002924]
[1722153063804,0.08958158,67619.0,67618.0,0.002924]
[1722153064246,0.05313876,67619.0,67618.0,0.002924]
[1722153064456,0.08843569,67619.0,67618.0,0.002924]
[1722153064630,0.089393,67619.0,67618.0,0.002924]
[1722153064865,0.08843569,67619.0,67618.0,0.002924]
[1722153065480,0.08934755,67619.0,67618.0,0.002924]
[1722153065763,0.08843569,67619.0,67618.0,0.002924]
[1722153065907,0.08928972,67619.0,67618.0,0.002924]
[1722153066542,0.08843569,67619.0,67618.0,0.002924]
[1722153066742,0.08937533,67619.0,67618.0,0.002924]
[1722153067063,0.08952674,67619.0,67618.0,0.002924]
[1722153067461,0.05199379,67619.0,67618.0,0.002924]
[1722153067664,0.08845012,67619.0,67618.0,0.002924]
[1722153067871,0.08952113,67619.0,67618.0,0.002924]
[1722153068072,0.08845012,67619.0,67618.0,0.002924]
[1722153068422,0.08968005,67619.0,67618.0,0.002924]
[1722153068630,0.08845012,67619.0,67618.0,0.002924]
[1722153068859,0.08960275,67619.0,67618.0,0.002924]
[1722153069091,0.08845012,67619.0,67618.0,0.002924]
[1722153069295,0.08962754,67619.0,67618.0,0.002924]
[1722153069705,0.08845012,67619.0,67618.0,0.002924]
[1722153070527,0.08927971,67619.0,67618.0,0.002924]
[1722153070675,0.0652963,67619.0,67618.0,0.002924]
[1722153070884,0.02883997,67619.0,67618.0,0.002924]
[1722153071082,0.0881663,67619.0,67618.0,0.002924]
[1722153071291,0.06501289,67619.0,67618.0,0.002924]
[1722153071526,0.0241082,67619.0,67618.0,0.673481]
[1722153072031,0.01134,67619.0,67618.0,0.673481]
[1722153072369,0.01034,67619.0,67618.0,0.672481]
[1722153072813,0.01234,67619.0,67618.0,0.672481]
[1722153073017,0.01234,67619.0,67618.0,0.671481]
[1722153074821,0.01234,67619.0,67618.0,0.908104]
[1722153076222,0.01234,67619.0,67618.0,1.12306357]
[1722153078033,0.01234,67619.0,67618.0,1.12606357]
[1722153078583,0.01034,67619.0,67618.0,1.12606357]
[1722153079106,0.01034,67619.0,67618.0,1.13006357]
[1722153079659,0.01034,67619.0,67618.0,0.678481]
[1722153079862,0.01034,67619.0,67618.0,0.915104]
[1722153080036,0.01034,67619.0,67618.0,0.992704]
[1722153085637,0.01034,67619.0,67618.0,1.055304]
[1722153091082,0.01034,67619.0,67618.0,0.519458]
[1722153091468,0.01034,67619.0,67618.0,0.992704]
[1722153091676,0.01034,67619.0,67618.0,0.756081]
[1722153091872,0.01034,67619.0,67618.0,0.913704]
[1722153092078,0.08904,67619.0,67618.0,0.007924]
[1722153092285,0.15564,67619.0,67618.0,0.007924]
[1722153092493,0.16845703,67619.0,67618.0,0.007924]
[1722153092702,0.20502212,67619.0,67618.0,0.126235]
[1722153092902,0.16845703,67619.0,67618.0,0.126235]
[1722153093084,0.16845703,67619.0,67618.0,0.007924]
[1722153093286,0.16845703,67619.0,67618.0,0.126235]
[1722153093741,0.16845703,67619.0,67618.0,0.123235]
[1722153093887,0.16845703,67619.0,67618.0,0.119235]
[1722153094491,0.16845703,67619.0,67618.0,0.000924]
[1722153096058,0.79646446,67619.0,67618.0,0.000924]
[1722153096287,0.81962008,67619.0,67618.0,0.000924]
[1722153096714,0.90568012,67619.0,67618.0,0.000924]
[1722153096915,0.85195123,67619.0,67618.0,0.000924]
[1722153097272,0.8517139,67619.0,67618.0,0.000924]
[1722153097656,0.88787155,67619.0,67618.0,0.000924]
[1722153098808,0.82135225,67619.0,67618.0,0.000924]
[1722153100614,0.82138505,67619.0,67618.0,0.000924]
[1722153100822,0.79822943,67619.0,67618.0,0.000924]
[1722153101024,0.76197353,67619.0,67618.0,0.000924]
[1722153101230,0.8213823,67619.0,67618.0,0.000924]
[1722153102936,0.82123845,67619.0,67618.0,0.000924]
[1722153103845,0.7851292,67619.0,67618.0,0.000924]
[1722153104086,0.82113356,67619.0,67618.0,0.000924]
[1722153105000,1.19763527,67619.0,67618.0,0.000924]
[1722153105223,1.05775256,67619.0,67618.0,0.000924]
[1722153105464,1.12424099,67619.0,67618.0,0.000924]
[1722153106807,1.37197156,67619.0,67618.0,0.000924]
[1722153107028,1.44187237,67619.0,67618.0,0.000924]
[1722153107282,1.3359672,67619.0,67618.0,0.000924]
[1722153107516,1.51072835,67619.0,67618.0,0.000924]
[1722153107766,1.51072835,67619.0,67618.0,0.001924]
[1722153107992,1.37186385,67619.0,67618.0,0.002924]
[1722153108244,1.36986385,67619.0,67618.0,0.000924]
[1722153108510,1.24399785,67619.0,67618.0,0.000924]
[1722153108738,1.24399785,67619.0,67618.0,0.002924]
[1722153108739,1.05764485,67619.0,67618.0,0.002924]
[1722153110641,1.12451081,67619.0,67618.0,0.002924]
[1722153110876,1.05807527,67619.0,67618.0,0.002924]
[1722153111097,1.05807454,67619.0,67618.0,0.002924]
[1722153111878,1.05607454,67619.0,67618.0,0.002924]
[1722153112828,1.05610481,67619.0,67618.0,0.002924]
[1722153114955,1.12253878,67619.0,67618.0,0.002924]
[1722153115343,1.05610481,67619.0,67618.0,0.002924]
[1722153115730,1.05693484,67619.0,67618.0,0.002924]
[1722153115935,1.05610481,67619.0,67618.0,0.002924]
[1722153116164,1.0197482,67619.0,67618.0,0.002924]
[1722153116357,1.05598834,67619.0,67618.0,0.002924]
[1722153117203,1.05618879,67619.0,67618.0,0.002924]
[1722153120511,1.05649784,67619.0,67618.0,0.002924]
[1722153120719,1.05805204,67619.0,67618.0,0.002924]
[1722153120935,1.0197482,67619.0,67618.0,0.002924]
[1722153121134,1.05649581,67619.0,67618.0,0.002924]
[1722153122705,1.05647474,67619.0,67618.0,0.002924]
[1722153126047,1.05670481,67619.0,67618.0,0.002924]
[1722153129134,1.0197482,67619.0,67618.0,0.002924]
[1722153129337,1.05650036,67619.0,67618.0,0.002924]
[1722153130357,0.43796236,67619.0,67618.0,0.002924]
[1722153131747,0.67458136,67619.0,67618.0,0.001924]
[1722153131948,0.67258136,67619.0,67618.0,0.001924]
[1722153132147,0.68658136,67619.0,67618.0,0.001924]
[1722153132561,0.69202443,67619.0,67618.0,0.002924]
[1722153132956,0.6548292,67619.0,67618.0,0.002924]
[1722153133155,0.69199974,67619.0,67618.0,0.002924]
[1722153134949,0.69184671,67619.0,67618.0,0.002924]
[1722153135281,0.45522771,67619.0,67618.0,0.002924]
[1722153135664,0.45678191,67619.0,67618.0,0.002924]
[1722153135893,0.45522771,67619.0,67618.0,0.002924]
[1722153136295,0.52174876,67619.0,67618.0,0.002924]
[1722153136499,0.52330296,67619.0,67618.0,0.002924]
[1722153137131,0.75992196,67619.0,67618.0,0.002924]
[1722153137338,0.78054145,67619.0,67618.0,0.002924]
[1722153137539,0.52179499,67619.0,67618.0,0.002924]
[1722153138391,0.45522771,67619.0,67618.0,0.002924]
[1722153138593,0.45678191,67619.0,67618.0,0.002924]
[1722153138861,0.78209565,67619.0,67618.0,0.002924]
[1722153139077,0.54392245,67619.0,67618.0,0.002924]
[1722153139286,0.54379391,67619.0,67618.0,0.002924]
[1722153140240,0.5216045,67619.0,67618.0,0.002924]
[1722153140452,0.45657543,67619.0,67618.0,0.002924]
[1722153141058,0.54534811,67619.0,67618.0,0.002924]
[1722153141467,0.54379391,67619.0,67618.0,0.002924]
[1722153141830,0.54534811,67619.0,67618.0,0.002924]
[1722153142462,0.5085651,67619.0,67618.0,0.002924]
[1722153142662,0.54529894,67619.0,67618.0,0.002924]
[1722153142908,0.54374474,67619.0,67618.0,0.002924]
[1722153143120,0.5447523,67619.0,67618.0,0.002924]
[1722153143498,0.54374343,67619.0,67618.0,0.002924]
[1722153143699,0.54489313,67619.0,67618.0,0.002924]
[1722153144358,0.54374343,67619.0,67618.0,0.002924]
[1722153144516,0.5215384,67619.0,67618.0,0.002924]
[1722153144747,0.4557768,67619.0,67618.0,0.002924]
[1722153144951,0.54373737,67619.0,67618.0,0.002924]
[1722153145319,0.78035637,67619.0,67618.0,0.002924]
[1722153145522,0.54373792,67619.0,67618.0,0.002924]
[1722153145753,0.1815912,67619.0,67618.0,0.002924]
[1722153145956,0.54370043,67619.0,67618.0,0.002924]
[1722153146181,0.45625816,67619.0,67618.0,0.002924]
[1722153146581,0.52149852,67619.0,67618.0,0.002924]
[1722153146786,0.52149857,67619.0,67618.0,0.002924]
[1722153146984,0.4557235,67619.0,67618.0,0.002924]
[1722153147910,0.45490674,67619.0,67618.0,0.002924]
[1722153148074,0.45646094,67619.0,67618.0,0.002924]
[1722153148279,0.09997874,67619.0,67618.0,0.002924]
[1722153148451,0.14592482,67619.0,67618.0,0.202935]
[1722153148636,0.10153294,67619.0,67618.0,0.265135]
[1722153148835,0.09997874,67619.0,67618.0,0.265135]
[1722153149049,0.09936709,67619.0,67618.0,0.265135]
[1722153150485,0.09936709,67619.0,67618.0,0.501758]
[1722153150700,0.07621142,67619.0,67618.0,0.501758]
[1722153151133,0.07621142,67619.0,67618.0,0.265135]
[1722153151538,0.09936514,67619.0,67618.0,0.265135]
[1722153151737,0.07621142,67619.0,67618.0,0.265135]
[1722153151956,0.09936518,67619.0,67618.0,0.265135]
[1722153152373,0.06328029,67619.0,67618.0,0.265135]
[1722153152557,0.09995767,67619.0,67618.0,0.265135]
[1722153152887,0.06328029,67619.0,67618.0,0.265135]
[1722153153091,0.09995767,67619.0,67618.0,0.084624]
[1722153153288,0.09995767,67619.0,67618.0,0.202935]
[1722153153719,0.07680391,67619.0,67618.0,0.202935]
[1722153153868,0.09995767,67619.0,67618.0,0.202935]
[1722153154648,0.06328029,67619.0,67618.0,0.202935]
[1722153154850,0.09969082,67619.0,67618.0,0.202935]
[1722153155638,0.06328029,67619.0,67618.0,0.202935]
[1722153155836,0.07663722,67619.0,67618.0,0.202935]
[1722153157476,0.09979097,67619.0,67618.0,0.202935]
[1722153157624,0.07663722,67619.0,67618.0,0.202935]
[1722153159021,0.0764857,67619.0,67618.0,0.202935]
[1722153161129,0.0996394,67619.0,67618.0,0.202935]
[1722153161590,0.0764857,67619.0,67618.0,0.202935]
[1722153162108,0.0996394,67619.0,67618.0,0.202935]
[1722153162312,0.06328023,67619.0,67618.0,0.202935]
[1722153162485,0.09947423,67619.0,67618.0,0.202935]
[1722153162693,0.06328023,67619.0,67618.0,0.002924]
[1722153162898,0.09947432,67619.0,67618.0,0.002924]
[1722153164693,0.0994009,67619.0,67618.0,0.002924]
[1722153165558,0.06328023,67619.0,67618.0,0.002924]
[1722153165731,0.0994664,67619.0,67618.0,0.002924]
[1722153168543,0.1010206,67619.0,67618.0,0.002924]
[1722153168753,0.0994664,67619.0,67618.0,0.002924]
[1722153168950,0.0994298,67619.0,67618.0,0.002924]
[1722153169181,0.09947211,67619.0,67618.0,0.002924]
[1722153170497,0.09947211,67619.0,67618.0,0.121235]
[1722153172226,0.06328023,67619.0,67618.0,0.121235]